fUSD/lending_fUSD_20250511
["ID","MTS","AMOUNT","RATE_DAILY","PERIOD"]
[360674812,1746922268122,-240.19,0.00019984,2]
[360674813,1746922268132,-570.9,0.00019984,2]
[360674814,1746922268143,-570.9,0.00019984,2]
[360674815,1746922268152,-477.54,0.00019984,2]
[360674816,1746922268163,-400.0,0.00019984,2]
[360674817,1746922268173,-400.0,0.00019984,2]
[360674818,1746922268183,-400.0,0.00019984,2]
[360674819,1746922268192,-863.57,0.00019984,2]
[360674820,1746922268202,-268.827068,0.00019984,2]
[360674821,1746922268211,-863.57,0.00019984,2]
[360674822,1746922268221,-624.8,0.00019984,2]
[360674823,1746922268231,-624.8,0.00019984,2]
[360674824,1746922268241,-268.827068,0.00019984,2]
[360674825,1746922268251,-610.92,0.00019984,2]
[360674826,1746922268260,-610.92,0.00019984,2]
[360674827,1746922268271,-400.0,0.00019984,2]
[360674828,1746922268281,-2975.71,0.00019984,2]
[360674829,1746922268290,-2975.71,0.00019984,2]
[360674830,1746922268300,-861.14,0.00019984,2]
[360674831,1746922268310,-509.30764877,0.00019984,2]
[360674832,1746922268320,-400.0,0.00019984,2]
[360674833,1746922268335,-3132.65,0.00019984,2]
[360674834,1746922268345,-400.0,0.00019984,2]
[360674835,1746922268357,-3132.65,0.00019984,2]
[360674836,1746922268367,-151.0,0.00019984,2]
[360674837,1746922268377,-1000.0,0.00019984,2]
[360674838,1746922268387,-1000.0,0.00019984,2]
[360674839,1746922268398,-1000.0,0.00019984,2]
[360674840,1746922268409,-151.0,0.00019984,2]
[360674841,1746922268419,-1000.0,0.00019984,2]
[360674842,1746922268429,-1000.0,0.00019984,2]
[360674843,1746922268438,-1000.0,0.00019984,2]
[360674844,1746922268452,-400.0,0.00019984,2]
[360674845,1746922268462,-427.61610414,0.00019984,2]
[360674846,1746922268471,-155.521842,0.00019984,2]
[360674847,1746922268485,-400.0,0.00019984,2]
[360674848,1746922268496,-1696.63,0.00019984,2]
[360674849,1746922268506,-1696.63,0.00019984,2]
[360674850,1746922268517,-400.0,0.00019984,2]
[360674851,1746922268528,-400.0,0.00019984,2]
[360674852,1746922268539,-400.0,0.00019984,2]
[360674853,1746922268549,-400.0,0.00019984,2]
[360674854,1746922268560,-400.0,0.00019984,2]
[360674855,1746922268570,-400.0,0.00019984,2]
[360674856,1746922268580,-400.0,0.00019984,2]
[360674857,1746922268590,-795.5,0.00019984,2]
[360674858,1746922268600,-795.5,0.00019984,2]
[360674859,1746922268611,-400.0,0.00019984,2]
[360674860,1746922268622,-400.0,0.00019984,2]
[360674861,1746922268632,-470.43,0.00019984,2]
[360674862,1746922268642,-470.43,0.00019984,2]
[360674863,1746922268652,-1342.02,0.00019984,2]
[360674864,1746922268662,-1342.02,0.00019984,2]
[360674865,1746922268672,-400.0,0.00019984,2]
[360674866,1746922268683,-402.12,0.00019984,2]
[360674867,1746922268693,-402.12,0.00019984,2]
[360674868,1746922268703,-400.0,0.00019984,2]
[360674869,1746922268717,-400.0,0.00019984,2]
[360674870,1746922268727,-400.0,0.00019984,2]
[360674871,1746922268737,-400.0,0.00019984,2]
[360674872,1746922268747,-400.0,0.00019984,2]
[360674873,1746922268932,-400.0,0.00019984,2]
[360674874,1746922268943,-1549.33,0.00019984,2]
[360674875,1746922268953,-388.71,0.00019984,2]
[360674876,1746922268962,-400.0,0.00019984,2]
[360674877,1746922268972,-400.0,0.00019984,2]
[360674878,1746922268982,-400.0,0.00019984,2]
[360674879,1746922268993,-400.0,0.00019984,2]
[360674880,1746922269003,-400.0,0.00019984,2]
[360674881,1746922269013,-462.203059,0.00019984,2]
[360674882,1746922269024,-462.203059,0.00019984,2]
[360674883,1746922269034,-400.0,0.00019984,2]
[360674884,1746922269043,-400.0,0.00019984,2]
[360674885,1746922269053,-400.0,0.00019984,2]
[360674886,1746922269063,-400.0,0.00019984,2]
[360674887,1746922269073,-400.0,0.00019984,2]
[360674888,1746922269083,-400.0,0.00019984,2]
[360674889,1746922269093,-400.0,0.00019984,2]
[360674890,1746922269103,-400.0,0.00019984,2]
[360674891,1746922269112,-400.0,0.00019984,2]
[360674892,1746922269122,-400.0,0.00019984,2]
[360674893,1746922269131,-400.0,0.00019984,2]
[360674894,1746922269140,-400.0,0.00019984,2]
[360674895,1746922269150,-400.0,0.00019984,2]
[360674896,1746922269161,-400.0,0.00019984,2]
[360674897,1746922269171,-400.0,0.00019984,2]
[360674898,1746922269180,-400.0,0.00019984,2]
[360674899,1746922269189,-544.12,0.00019984,2]
[360674900,1746922269199,-544.12,0.00019984,2]
[360674901,1746922269208,-400.0,0.00019984,2]
[360674902,1746922269218,-400.0,0.00019984,2]
[360674903,1746922269227,-400.0,0.00019984,2]
[360674904,1746922269236,-400.0,0.00019984,2]
[360674905,1746922269246,-400.0,0.00019984,2]
[360674906,1746922269256,-400.0,0.00019984,2]
[360674907,1746922269266,-400.0,0.00019984,2]
[360674908,1746922269275,-400.0,0.00019984,2]
[360674909,1746922269285,-851.88,0.00019984,2]
[360674910,1746922269294,-400.0,0.00019984,2]
[360674911,1746922269305,-400.0,0.00019984,2]
[360674912,1746922269315,-2265.29,0.00019984,2]
[360674913,1746922269324,-2265.29,0.00019984,2]
[360674914,1746922269337,-400.0,0.00019984,2]
[360674915,1746922269364,-400.0,0.00019984,2]
[360674916,1746922269374,-400.0,0.00019984,2]
[360674917,1746922269384,-535.47,0.00019984,2]
[360674918,1746922269393,-400.0,0.00019984,2]
[360674919,1746922269405,-400.0,0.00019984,2]
[360674920,1746922269415,-400.0,0.00019984,2]
[360674921,1746922269425,-908.5,0.00019984,2]
[360674922,1746922269434,-400.0,0.00019984,2]
[360674923,1746922269444,-400.0,0.00019984,2]
[360674924,1746922269454,-400.0,0.00019984,2]
[360674925,1746922269465,-400.0,0.00019984,2]
[360674926,1746922269475,-400.0,0.00019984,2]
[360674927,1746922269484,-400.0,0.00019984,2]
[360674928,1746922269494,-428.62613942,0.00019984,2]
[360674929,1746922269504,-400.0,0.00019984,2]
[360674930,1746922269513,-400.0,0.00019984,2]
[360674931,1746922269523,-400.0,0.00019985,2]
[360674932,1746922269533,-400.0,0.00019985,2]
[360674933,1746922269543,-576.35,0.00019985,2]
[360674934,1746922269553,-400.0,0.00019985,2]
[360674935,1746922269564,-549.19,0.00019985,2]
[360674936,1746922269573,-400.0,0.00019985,2]
[360674937,1746922269583,-400.0,0.00019985,2]
[360674938,1746922269593,-400.0,0.00019985,2]
[360674939,1746922269606,-400.0,0.00019985,2]
[360674940,1746922269615,-590.88,0.00019985,2]
[360674941,1746922269626,-400.0,0.00019985,2]
[360674942,1746922269636,-400.0,0.00019985,2]
[360674943,1746922269645,-286.93,0.00019985,2]
[360674944,1746922269654,-400.0,0.00019985,2]
[360674945,1746922269664,-400.0,0.00019985,2]
[360674946,1746922269674,-416.54,0.00019985,2]
[360674947,1746922269683,-151.0,0.00019985,2]
[360674948,1746922269692,-450.0,0.00019985,2]
[360674949,1746922269702,-151.0,0.00019985,2]
[360674950,1746922269712,-511.72,0.00019985,2]
[360674951,1746922269721,-400.0,0.00019985,2]
[360674952,1746922269730,-468.61,0.00019985,2]
[360674953,1746922269740,-151.0,0.00019985,2]
[360674954,1746922269750,-1034.88,0.00019985,2]
[360674955,1746922269760,-491.04,0.00019985,2]
[360674956,1746922269769,-891.09,0.00019985,2]
[360674957,1746922269778,-151.0,0.00019985,2]
[360674958,1746922269787,-400.0,0.00019985,2]
[360674959,1746922269797,-400.0,0.00019985,2]
[360674960,1746922269806,-400.0,0.00019985,2]
[360674961,1746922269815,-400.0,0.00019985,2]
[360674962,1746922269825,-400.0,0.00019985,2]
[360674963,1746922269835,-400.0,0.00019985,2]
[360674964,1746922269845,-400.0,0.00019985,2]
[360674965,1746922269858,-151.0,0.00019985,2]
[360674966,1746922269867,-400.0,0.00019985,2]
[360674967,1746922269877,-151.0,0.00019985,2]
[360674968,1746922269886,-400.0,0.00019985,2]
[360674969,1746922269895,-400.0,0.00019985,2]
[360674970,1746922269905,-152.569309,0.00019985,2]
[360674971,1746922269915,-400.0,0.00019985,2]
[360674972,1746922269924,-151.0,0.00019985,2]
[360674973,1746922269935,-400.0,0.00019985,2]
[360674974,1746922269946,-400.0,0.00019985,2]
[360674975,1746922269955,-400.0,0.00019985,2]
[360674976,1746922269964,-702.22,0.00019985,2]
[360674977,1746922269973,-462.7,0.00019985,2]
[360674978,1746922269982,-400.0,0.00019985,2]
[360674979,1746922269991,-836.26,0.00019985,2]
[360674980,1746922270000,-279.80104854,0.00019985,2]
[360674981,1746922270010,-638.44,0.00019985,2]
[360674982,1746922270019,-400.0,0.00019985,2]
[360674983,1746922270028,-400.0,0.00019985,2]
[360674984,1746922270037,-518.45,0.00019985,2]
[360674985,1746922270048,-400.0,0.00019985,2]
[360674986,1746922270057,-400.0,0.00019985,2]
[360674987,1746922270066,-614.22,0.00019985,2]
[360674988,1746922270075,-151.0,0.00019985,2]
[360674989,1746922270084,-400.0,0.00019985,2]
[360674990,1746922270094,-400.0,0.00019985,2]
[360674991,1746922270105,-243.8,0.00019985,2]
[360674992,1746922270114,-400.0,0.00019985,2]
[360674993,1746922270123,-506.95,0.00019985,2]
[360674994,1746922270132,-400.0,0.00019985,2]
[360674995,1746922270142,-431.85,0.00019985,2]
[360674996,1746922270151,-400.0,0.00019985,2]
[360674997,1746922270161,-400.0,0.00019985,2]
[360674998,1746922270170,-516.55496757,0.00019985,2]
[360674999,1746922270179,-158.41814215,0.00019985,2]
[360675000,1746922270188,-151.0,0.00019985,2]
[360675001,1746922270198,-417.41,0.00019985,2]
[360675002,1746922270207,-724.13,0.00019985,2]
[360675003,1746922270217,-400.0,0.00019985,2]
[360675004,1746922270228,-400.0,0.00019985,2]
[360675005,1746922270237,-400.0,0.00019985,2]
[360675006,1746922270247,-151.0,0.00019985,2]
[360675007,1746922270256,-423.04,0.00019985,2]
[360675008,1746922270265,-400.0,0.00019985,2]
[360675009,1746922270274,-400.0,0.00019985,2]
[360675010,1746922270284,-424.85,0.00019985,2]
[360675011,1746922270294,-400.0,0.00019985,2]
[360675012,1746922270305,-680.11,0.00019985,2]
[360675013,1746922270315,-400.0,0.00019985,2]
[360675014,1746922270325,-400.0,0.00019985,2]
[360675015,1746922270338,-400.0,0.00019985,2]
[360675016,1746922270349,-151.0,0.00019985,2]
[360675017,1746922270359,-400.0,0.00019985,2]
[360675018,1746922270370,-400.0,0.00019985,2]
[360675019,1746922270380,-400.0,0.00019985,2]
[360675020,1746922270390,-400.0,0.00019985,2]
[360675021,1746922270399,-151.0,0.00019985,2]
[360675022,1746922270411,-400.0,0.00019985,2]
[360675023,1746922270421,-182.53942007,0.00019985,2]
[360675024,1746922270431,-400.0,0.00019985,2]
[360675025,1746922270440,-722.52,0.00019985,2]
[360675026,1746922270450,-400.0,0.00019985,2]
[360675027,1746922270460,-428.6,0.00019985,2]
[360675028,1746922270471,-400.0,0.00019985,2]
[360675029,1746922270482,-400.0,0.00019985,2]
[360675030,1746922270492,-151.0,0.00019985,2]
[360675031,1746922270501,-450.0,0.00019985,2]
[360675032,1746922270511,-400.0,0.00019985,2]
[360675033,1746922270522,-400.0,0.00019985,2]
[360675034,1746922270531,-400.0,0.00019985,2]
[360675035,1746922270541,-494.9,0.00019985,2]
[360675036,1746922270551,-173.583602,0.00019985,2]
[360675037,1746922270561,-173.583602,0.00019985,2]
[360675038,1746922270570,-400.0,0.00019985,2]
[360675039,1746922270580,-151.0,0.00019985,2]
[360675040,1746922270590,-400.0,0.00019985,2]
[360675041,1746922270602,-470.69,0.00019985,2]
[360675042,1746922270614,-1196.84,0.00019985,2]
[360675043,1746922270624,-400.0,0.00019985,2]
[360675044,1746922270633,-400.0,0.00019985,2]
[360675045,1746922270643,-588.98,0.00019985,2]
[360675046,1746922270657,-400.0,0.00019985,2]
[360675047,1746922270667,-1797.40389,0.00019985,2]
[360675048,1746922270678,-400.0,0.00019985,2]
[360675049,1746922270687,-400.0,0.00019985,2]
[360675050,1746922270697,-711.13,0.00019985,2]
[360675051,1746922270706,-400.0,0.00019985,2]
[360675052,1746922270717,-400.0,0.00019985,2]
[360675053,1746922270727,-400.0,0.00019985,2]
[360675054,1746922270737,-400.0,0.00019985,2]
[360675055,1746922270747,-400.0,0.00019985,2]
[360675056,1746922270756,-400.0,0.00019985,2]
[360675057,1746922270766,-400.0,0.00019985,2]
[360675058,1746922270775,-501.66,0.00019985,2]
[360675059,1746922270785,-400.0,0.00019985,2]
[360675060,1746922270794,-450.28,0.00019985,2]
[360675061,1746922270804,-450.28,0.00019985,2]
[360675062,1746922270813,-748.55,0.00019985,2]
[360675063,1746922270823,-27410.73,0.00019985,2]
[360675064,1746922270832,-400.0,0.00019985,2]
[360675065,1746922270842,-151.0,0.00019985,2]
[360675066,1746922270852,-400.0,0.00019985,2]
[360675067,1746922270863,-400.0,0.00019985,2]
[360675068,1746922270872,-400.0,0.00019985,2]
[360675069,1746922270881,-151.0,0.00019985,2]
[360675070,1746922270890,-400.0,0.00019985,2]
[360675071,1746922270900,-400.0,0.00019985,2]
[360675072,1746922270909,-400.0,0.00019985,2]
[360675073,1746922270919,-400.0,0.00019985,2]
[360675074,1746922270929,-660.51,0.00019985,2]
[360675075,1746922270938,-942.26,0.00019985,2]
[360675076,1746922270948,-942.26,0.00019985,2]
[360675077,1746922270958,-151.0,0.00019985,2]
[360675078,1746922270967,-151.0,0.00019985,2]
[360675079,1746922270976,-613.12,0.00019985,2]
[360675080,1746922270986,-613.12,0.00019985,2]
[360675081,1746922270996,-400.0,0.00019985,2]
[360675082,1746922271005,-400.0,0.00019985,2]
[360675083,1746922271015,-400.0,0.00019985,2]
[360675084,1746922271025,-400.0,0.00019985,2]
[360675085,1746922271034,-400.0,0.00019985,2]
[360675086,1746922271044,-568.0,0.00019985,2]
[360675087,1746922271054,-400.0,0.00019985,2]
[360675088,1746922271064,-400.0,0.00019985,2]
[360675089,1746922271074,-500.0,0.00019985,2]
[360675090,1746922271085,-400.0,0.00019985,2]
[360675091,1746922271095,-400.0,0.00019985,2]
[360675092,1746922271108,-400.0,0.00019985,2]
[360675093,1746922271117,-400.0,0.00019985,2]
[360675094,1746922271127,-400.0,0.00019985,2]
[360675095,1746922271137,-244.22951739,0.00019985,2]
[360675096,1746922271146,-400.0,0.00019985,2]
[360675097,1746922271156,-820.74,0.00019985,2]
[360675098,1746922271166,-815.94,0.00019985,2]
[360675099,1746922271176,-686.29,0.00019985,2]
[360675100,1746922271186,-1754.64,0.00019985,2]
[360675101,1746922271196,-229.89,0.00019985,2]
[360675102,1746922271205,-400.0,0.00019985,2]
[360675103,1746922271215,-400.0,0.00019985,2]
[360675104,1746922271225,-287.67657462,0.00019985,2]
[360675105,1746922271234,-400.0,0.00019985,2]
[360675106,1746922271243,-400.0,0.00019985,2]
[360675107,1746922271253,-400.0,0.00019985,2]
[360675108,1746922271263,-312.45,0.00019985,2]
[360675109,1746922271273,-400.0,0.00019985,2]
[360675110,1746922271283,-570.9,0.00019985,2]
[360675111,1746922271293,-400.0,0.00019985,2]
[360675112,1746922271303,-400.0,0.00019985,2]
[360675113,1746922271313,-400.0,0.00019985,2]
[360675114,1746922271323,-863.57,0.00019985,2]
[360675115,1746922271336,-624.8,0.00019985,2]
[360675116,1746922271346,-400.0,0.00019985,2]
[360675117,1746922271357,-610.92,0.00019985,2]
[360675118,1746922271367,-400.0,0.00019985,2]
[360675119,1746922271378,-400.0,0.00019985,2]
[360675120,1746922271388,-2975.71,0.00019985,2]
[360675121,1746922271397,-400.0,0.00019985,2]
[360675122,1746922271409,-400.0,0.00019985,2]
[360675123,1746922271418,-657.91,0.00019985,2]
[360675124,1746922271428,-657.91,0.00019985,2]
[360675125,1746922271438,-861.14,0.00019985,2]
[360675126,1746922271448,-861.14,0.00019985,2]
[360675127,1746922271458,-151.0,0.00019985,2]
[360675128,1746922271468,-400.0,0.00019985,2]
[360675129,1746922271478,-3132.65,0.00019985,2]
[360675130,1746922271488,-447.07,0.00019985,2]
[360675131,1746922271498,-400.0,0.00019985,2]
[360675132,1746922271507,-400.0,0.00019985,2]
[360675133,1746922271517,-1696.63,0.00019985,2]
[360675134,1746922271528,-400.0,0.00019985,2]
[360675135,1746922271538,-400.0,0.00019985,2]
[360675136,1746922271547,-400.0,0.00019985,2]
[360675137,1746922271558,-400.0,0.00019985,2]
[360675138,1746922271568,-400.0,0.00019985,2]
[360675139,1746922271577,-444.38,0.00019985,2]
[360675140,1746922271587,-795.5,0.00019985,2]
[360675141,1746922271596,-400.0,0.00019985,2]
[360675142,1746922271607,-470.43,0.00019985,2]
[360675143,1746922271617,-1342.02,0.00019985,2]
[360675144,1746922271627,-400.0,0.00019985,2]
[360675145,1746922271637,-400.0,0.00019985,2]
[360675146,1746922271647,-402.12,0.00019985,2]
[360675147,1746922271657,-151.0,0.00019985,2]
[360675148,1746922271667,-400.0,0.00019985,2]
[360675149,1746922271677,-400.0,0.00019985,2]
[360675150,1746922271688,-400.0,0.00019985,2]
[360675151,1746922271698,-1549.33,0.00019985,2]
[360675152,1746922271708,-1549.33,0.00019985,2]
[360675153,1746922271718,-151.0,0.00019985,2]
[360675154,1746922271727,-400.0,0.00019985,2]
[360675155,1746922271737,-400.0,0.00019985,2]
[360675156,1746922271747,-400.0,0.00019985,2]
[360675157,1746922271756,-400.0,0.00019985,2]
[360675158,1746922271766,-400.0,0.00019985,2]
[360675159,1746922271776,-400.0,0.00019985,2]
[360675160,1746922271787,-400.0,0.00019985,2]
[360675161,1746922271796,-400.0,0.00019985,2]
[360675162,1746922271806,-361.01377011,0.00019985,2]
[360675163,1746922271816,-400.0,0.00019985,2]
[360675164,1746922271826,-400.0,0.00019985,2]
[360675165,1746922271836,-400.0,0.00019985,2]
[360675166,1746922271845,-400.0,0.00019985,2]
[360675167,1746922271857,-600.9,0.00019985,2]
[360675168,1746922271867,-600.9,0.00019985,2]
[360675169,1746922271877,-400.0,0.00019985,2]
[360675170,1746922271887,-400.0,0.00019985,2]
[360675171,1746922271896,-544.12,0.00019985,2]
[360675172,1746922271905,-400.0,0.00019985,2]
[360675173,1746922271915,-400.0,0.00019985,2]
[360675174,1746922271924,-400.0,0.00019985,2]
[360675175,1746922271934,-400.0,0.00019985,2]
[360675176,1746922271944,-400.0,0.00019985,2]
[360675177,1746922271954,-851.88,0.00019985,2]
[360675178,1746922271963,-851.88,0.00019985,2]
[360675179,1746922272102,-400.0,0.00019985,2]
[360675180,1746922272128,-400.0,0.00019985,2]
[360675181,1746922272138,-400.0,0.00019985,2]
[360675182,1746922272147,-400.0,0.00019985,2]
[360675183,1746922272158,-262.786039,0.00019985,2]
[360675184,1746922272168,-2265.29,0.00019985,2]
[360675185,1746922272178,-400.0,0.00019985,2]
[360675186,1746922272188,-400.0,0.00019985,2]
[360675187,1746922272198,-400.0,0.00019985,2]
[360675188,1746922272208,-151.0,0.00019985,2]
[360675189,1746922272218,-262.786039,0.00019985,2]
[360675190,1746922272228,-518.2,0.00019985,2]
[360675191,1746922272237,-518.2,0.00019985,2]
[360675192,1746922272248,-200.90904522,0.00019985,2]
[360675193,1746922272259,-908.5,0.00019985,2]
[360675194,1746922272269,-908.5,0.00019985,2]
[360675195,1746922272278,-400.0,0.00019985,2]
[360675196,1746922272288,-400.0,0.00019985,2]
[360675197,1746922272298,-400.0,0.00019985,2]
[360675198,1746922272308,-400.0,0.00019985,2]
[360675199,1746922272318,-400.0,0.00019985,2]
[360675200,1746922272328,-400.0,0.00019985,2]
[360675201,1746922272341,-652.64111379,0.00019985,2]
[360675202,1746922272351,-300.0,0.00019985,2]
[360675203,1746922272363,-500.0,0.00019985,2]
[360675204,1746922272373,-280.89640898,0.00019986,2]
[360675205,1746922272393,-221.24274199,0.00019986,2]
[360675206,1746922272403,-200.0,0.00019986,2]
[360675207,1746922272415,-151.0,0.00019986,2]
[360675208,1746922272425,-151.0,0.00019986,2]
[360675209,1746922272435,-151.0,0.00019986,2]
[360675210,1746922272444,-151.0,0.00019986,2]
[360675211,1746922272453,-151.347017,0.00019986,2]
[360675212,1746922272463,-151.0,0.00019986,2]
[360675213,1746922272473,-151.0,0.00019986,2]
[360675214,1746922272482,-151.0,0.00019986,2]
[360675215,1746922272494,-151.0,0.00019986,2]
[360675216,1746922272503,-151.0,0.00019986,2]
[360675217,1746922272512,-151.0,0.00019986,2]
[360675218,1746922272522,-173.583602,0.00019986,2]
[360675219,1746922272532,-6350.6997848,0.00019986,2]
[360675220,1746922272542,-7561.321327,0.00019986,2]
[360675221,1746922272551,-8771.9428693,0.00019986,2]
[360675222,1746922272561,-9982.5644115,0.00019986,2]
[360675223,1746922272570,-173.583602,0.00019986,2]
[360675224,1746922272580,-151.0,0.00019986,2]
[360675225,1746922272589,-1797.40389,0.00019986,2]
[360675226,1746922272598,-151.0,0.00019986,2]
[360675227,1746922272609,-294.001683,0.00019986,2]
[360675228,1746922272618,-151.0,0.00019986,2]
[360675229,1746922272628,-151.0,0.00019986,2]
[360675230,1746922272637,-215.091808,0.00019986,2]
[360675231,1746922272647,-151.0,0.00019986,2]
[360675232,1746922272656,-151.0,0.00019986,2]
[360675233,1746922272666,-151.0,0.00019986,2]
[360675234,1746922272675,-151.0,0.00019986,2]
[360675235,1746922272684,-2273.6093257,0.00019986,2]
[360675236,1746922272693,-2605.5214775,0.00019986,2]
[360675237,1746922272703,-2937.4336293,0.00019986,2]
[360675238,1746922272712,-3269.3457811,0.00019986,2]
[360675239,1746922272721,-151.0,0.00019986,2]
[360675240,1746922272731,-268.827068,0.00019986,2]
[360675241,1746922272741,-268.827068,0.00019986,2]
[360675242,1746922272750,-151.0,0.00019986,2]
[360675243,1746922272760,-151.0,0.00019986,2]
[360675244,1746922272769,-151.0,0.00019986,2]
[360675245,1746922272779,-151.0,0.00019986,2]
[360675246,1746922272788,-87043.1450257,0.00019986,2]
[360675247,1746922272797,-217.404512,0.00019986,2]
[360675248,1746922272807,-93453.5538762,0.00019986,2]
[360675249,1746922272816,-99863.9627268,0.00019986,2]
[360675250,1746922272825,-106274.3715773,0.00019986,2]
[360675251,1746922272834,-462.203059,0.00019986,2]
[360675252,1746922272844,-462.203059,0.00019986,2]
[360675253,1746922272853,-262.786039,0.00019986,2]
[360675254,1746922272867,-151.0,0.00019986,2]
[360675255,1746922272876,-262.786039,0.00019986,2]
[360675256,1746922272885,-300.0,0.00019987,2]
[360675257,1746922272895,-228.50585417,0.00019988,2]
[360675258,1746922272904,-400.0,0.00019988,2]
[360675259,1746922272914,-400.0,0.00019988,2]
[360675260,1746922272923,-416.54,0.00019988,2]
[360675261,1746922272932,-151.0,0.00019988,2]
[360675262,1746922272942,-511.72,0.00019988,2]
[360675263,1746922272951,-400.0,0.00019988,2]
[360675264,1746922272960,-468.61,0.00019988,2]
[360675265,1746922272970,-1034.88,0.00019988,2]
[360675266,1746922272979,-491.04,0.00019988,2]
[360675267,1746922272988,-891.09,0.00019988,2]
[360675268,1746922272998,-400.0,0.00019988,2]
[360675269,1746922273007,-400.0,0.00019988,2]
[360675270,1746922273016,-400.0,0.00019988,2]
[360675271,1746922273025,-400.0,0.00019988,2]
[360675272,1746922273034,-400.0,0.00019988,2]
[360675273,1746922273044,-400.0,0.00019988,2]
[360675274,1746922273053,-400.0,0.00019988,2]
[360675275,1746922273062,-400.0,0.00019988,2]
[360675276,1746922273071,-400.0,0.00019988,2]
[360675277,1746922273080,-400.0,0.00019988,2]
[360675278,1746922273089,-400.0,0.00019988,2]
[360675279,1746922273099,-400.0,0.00019988,2]
[360675280,1746922273113,-400.0,0.00019988,2]
[360675281,1746922273122,-702.22,0.00019988,2]
[360675282,1746922273131,-400.0,0.00019988,2]
[360675283,1746922273141,-836.26,0.00019988,2]
[360675284,1746922273151,-638.44,0.00019988,2]
[360675285,1746922273160,-400.0,0.00019988,2]
[360675286,1746922273170,-400.0,0.00019988,2]
[360675287,1746922273179,-518.45,0.00019988,2]
[360675288,1746922273188,-400.0,0.00019988,2]
[360675289,1746922273198,-400.0,0.00019988,2]
[360675290,1746922273207,-614.22,0.00019988,2]
[360675291,1746922273217,-400.0,0.00019988,2]
[360675292,1746922273226,-400.0,0.00019988,2]
[360675293,1746922273235,-506.95,0.00019988,2]
[360675294,1746922273245,-400.0,0.00019988,2]
[360675295,1746922273255,-431.85,0.00019988,2]
[360675296,1746922273264,-724.13,0.00019988,2]
[360675297,1746922273274,-400.0,0.00019988,2]
[360675298,1746922273283,-400.0,0.00019988,2]
[360675299,1746922273291,-400.0,0.00019988,2]
[360675300,1746922273301,-423.04,0.00019988,2]
[360675301,1746922273310,-400.0,0.00019988,2]
[360675302,1746922273319,-400.0,0.00019988,2]
[360675303,1746922273329,-424.85,0.00019988,2]
[360675304,1746922273342,-400.0,0.00019988,2]
[360675305,1746922273351,-680.11,0.00019988,2]
[360675306,1746922273365,-400.0,0.00019988,2]
[360675307,1746922273374,-400.0,0.00019988,2]
[360675308,1746922273384,-400.0,0.00019988,2]
[360675309,1746922273394,-445.26,0.00019988,2]
[360675310,1746922273403,-400.0,0.00019988,2]
[360675311,1746922273415,-400.0,0.00019988,2]